[Event "56th Rubinstein Memorial C 2020"]
[Site "Polanica Zdroj"]
[Date "2020.08.21"]
[Round "7.13"]
[White "Kolodziejski, Grzegorz"]
[Black "Raclawicki, Kacper"]
[Result "0-1"]
[ECO "B06"]
[WhiteElo "1550"]
[BlackElo "1879"]
[Annotator "NA RC"]
[PlyCount "90"]
[EventDate "2020.08.15"]
[EventType "swiss"]
[EventCountry "POL"]
[SourceTitle "playchess.com"]
[Source "ChessBase"]
[SourceQuality "1"]
[TimeControl "40/5400+30:1800+30"]

1. e4 {[%emt 0:00:00]} g6 {[%emt 0:09:33]} 2. d4 {[%emt 0:00:01]} Bg7 {[%emt 0:00:21]} 3. Nc3 {[%emt 0:00:22]} d6 {[%emt 0:01:14]} 4. Bg5 {[%emt 0:00:33]} c5 {[%emt 0:07:07]} 5. dxc5 {[%emt 0:02:47]} Qa5 {[%emt 0:00:54]} 6. Qd2 {[%emt 0:00:58]} Qxc5 {[%emt 0:06:13]} 7. Nf3 {[%emt 0:01:19] [#] B06: Modern Defence.} Be6 $146 {[%emt 0:03:51]} ({Predecessor:} 7... Bg4 8. Be3 Qa5 9. Nd4 a6 10. Nb3 Qd8 11. f3 Bd7 12. Nd5 Nc6 13. Bb6 Qc8 14. Nc7+ Kf8 15. Nxa8 Qxa8 {1-0 (65) Budimir,D (2165)-Djurasinov,B (2175) Belgrade 2016}) 8. Be3 {[%emt 0:01:08]} Qa5 {[%emt 0:04:55]} (8... Bxc3 $5 9. bxc3 Qc7 $11) 9. Nd4 {[%emt 0:00:32]} Bd7 {[%emt 0:01:32]} (9... Nc6 $11 {keeps the balance.}) 10. f3 {[%emt 0:01:34]} Nc6 {[%emt 0:02:01]} 11. Be2 {[%emt 0:01:30]} Nf6 {[%emt 0:01:24]} (11... Bxd4 $14 12. Bxd4 Nxd4 13. Qxd4 Nf6) 12. g4 {[%emt 0:01:01]} h6 {[%emt 0:06:03]} 13. h4 {[%emt 0:01:38]} Rc8 {[%emt 0:02:15]} 14. O-O-O {[%emt 0:01:06]} Ne5 {[%emt 0:12:07]} 15. h5 {[%emt 0:02:34]} g5 {[%emt 0:02:23]} 16. Nf5 {[%emt 0:00:13]} Bxf5 {[%emt 0:00:48]} 17. gxf5 {[%emt 0:00:08]} Nc4 {[%emt 0:01:15]} 18. Bxc4 {[%emt 0:00:06]} Rxc4 {[%emt 0:00:45]} 19. Qd3 {[%emt 0:03:09]} b5 {[%emt 0:04:16]} 20. e5 {[%emt 0:03:38]} dxe5 {[%emt 0:11:01]} 21. Nxb5 {[%emt 0:00:17]} Rb4 {[%emt 0:02:52]} 22. Nxa7 {[%emt 0:01:50]} e4 {[%emt 0:03:18]} (22... O-O $142) 23. Qd8+ {[%emt 0:04:50]} Qxd8 {[%emt 0:00:34]} 24. Rxd8+ {[%emt 0:00:02]} Kxd8 {[%emt 0:00:00]} 25. Nc6+ {[%emt 0:00:01]} Kc7 {[%emt 0:00:43]} 26. Nxb4 {[%emt 0:00:06]} exf3 {[%emt 0:01:02]} 27. Bd4 {[%emt 0:00:17]} Nxh5 {[%emt 0:03:09]} 28. Bxg7 {[%emt 0:01:04]} Nxg7 {[%emt 0:00:07]} 29. f6 {[%emt 0:00:11]} Nf5 {[%emt 0:04:13]} 30. fxe7 {[%emt 0:00:07]} g4 {[%emt 0:01:06]} 31. Nd5+ {[%emt 0:00:09]} Kc6 {[%emt 0:01:19]} 32. Nf6 {[%emt 0:02:14]} g3 {[%emt 0:00:52]} 33. Ne4 {[%emt 0:00:56]} Re8 {[%emt 0:01:36]} 34. Rg1 {[%emt 0:00:40]} Rxe7 {[%emt 0:01:23]} 35. Nxg3 {[%emt 0:01:10]} Nxg3 {[%emt 0:00:55]} 36. Rxg3 {[%emt 0:00:23]} Re1+ {[%emt 0:00:55]} 37. Kd2 {[%emt 0:00:03]} f2 {[%emt 0:00:03]} 38. Rc3+ {[%emt 0:00:16]} Kd5 {[%emt 0:01:04]} 39. Rd3+ {[%emt 0:00:39]} Ke4 {[%emt 0:00:22]} 40. Kc3 {[%emt 0:00:00]} f1=Q {[%emt 0:00:00]} 41. a4 {[%emt 0:00:21]} Qf6+ {[%emt 0:02:20]} 42. Kb3 {[%emt 0:00:06]} Rb1 {[%emt 0:02:56]} 43. Rc3 {[%emt 0:00:05]} Qb6+ {[%emt 0:00:25]} 44. Kc4 {[%emt 0:00:11]} Rxb2 {[%emt 0:00:26]} 45. a5 {[%emt 0:00:18]} Qd4# {[%emt 0:00:10]} 0-1

[Event "56th Rubinstein Memorial C 2020"]
[Site "Polanica Zdroj"]
[Date "2020.08.21"]
[Round "7.14"]
[White "Maslo, Slawomir"]
[Black "Ciborowski, Konrad Jr"]
[Result "0-1"]
[ECO "A85"]
[WhiteElo "1740"]
[BlackElo "1464"]
[Annotator "NA RC"]
[PlyCount "52"]
[EventDate "2020.08.15"]
[EventType "swiss"]
[EventCountry "POL"]
[SourceTitle "playchess.com"]
[Source "ChessBase"]
[SourceQuality "1"]
[TimeControl "40/5400+30:1800+30"]

1. d4 {[%emt 0:00:33]} f5 {[%emt 0:00:00]} 2. c4 {[%emt 0:00:22]} Nf6 {[%emt 0:00:00]} 3. Nc3 {[%emt 0:00:21]} d6 {[%emt 0:00:00]} 4. g3 {[%emt 0:00:32]} g6 {[%emt 0:00:00]} 5. Bg2 {[%emt 0:00:12]} Bg7 {[%emt 0:00:00]} 6. Nf3 {[%emt 0:00:15]} O-O {[%emt 0:00:00]} 7. O-O {[%emt 0:00:45]} Qe8 {[%emt 0:00:03]} 8. Bg5 {[%emt 0:01:49]} e5 {[%emt 0:00:32]} 9. Bxf6 {[%emt 0:00:33]} Bxf6 {[%emt 0:00:05]} 10. dxe5 {[%emt 0:00:54]} dxe5 {[%emt 0:00:04]} 11. Nd5 {[%emt 0:01:02]} Bd8 {[%emt 0:02:53]} 12. e4 {[%emt 0:02:11]} c6 {[%emt 0:00:21]} 13. Nc3 {[%emt 0:00:15]} f4 {[%emt 0:00:09]} 14. Qb3 {[%emt 0:00:51]} g5 {[%emt 0:05:31]} 15. Nd2 {[%emt 0:08:54]} Qh5 {[%emt 0:03:05]} 16. Qd1 {[%emt 0:03:58]} g4 {[%emt 0:01:28]} 17. f3 {[%emt 0:02:27]} Bb6+ {[%emt 0:00:09]} 18. Rf2 {[%emt 0:02:08]} Bxf2+ {[%emt 0:01:06]} 19. Kxf2 {[%emt 0:00:05]} fxg3+ {[%emt 0:00:12]} 20. hxg3 {[%emt 0:00:27]} gxf3 {[%emt 0:00:47]} 21. Nxf3 {[%emt 0:02:04]} Bg4 {[%emt 0:00:35]} 22. Qd3 {[%emt 0:02:38]} Na6 {[%emt 0:01:01]} 23. Qe3 {[%emt 0:04:20]} Bxf3 {[%emt 0:00:23]} 24. Bxf3 {[%emt 0:00:27]} Rxf3+ {[%emt 0:00:07]} 25. Qxf3 {[%emt 0:00:25]} Rf8 {[%emt 0:00:05]} 26. Qxf8+ {[%emt 0:00:13]} Kxf8 {[%emt 0:00:04]} 0-1

[Event "56th Rubinstein Memorial C 2020"]
[Site "Polanica Zdroj"]
[Date "2020.08.21"]
[Round "7.15"]
[White "Mackowiak, Szymon"]
[Black "Vanduyfhuys, Igor"]
[Result "*"]
[ECO "E61"]
[WhiteElo "1689"]
[BlackElo "1776"]
[Annotator "NA RC"]
[PlyCount "78"]
[EventDate "2020.08.15"]
[EventType "swiss"]
[EventCountry "POL"]
[SourceTitle "playchess.com"]
[Source "ChessBase"]
[SourceQuality "1"]
[TimeControl "40/5400+30:1800+30"]

1. d4 Nf6 2. c4 g6 3. Nc3 Bg7 4. Nf3 O-O 5. Bg5 d6 6. Qc2 c5 7. e3 Nc6 8. d5 Nb4 9. Qb1 Qa5 10. Nd2 e6 11. a3 Na6 12. Be2 exd5 13. Bxf6 Bxf6 14. Nxd5 Bg7 15. b4 cxb4 16. Ra2 bxa3 17. O-O Nc5 18. Nb3 Qa4 19. Nxc5 dxc5 20. Qc1 Be6 21. Rxa3 Qd7 22. Rd1 Bxd5 23. Rxd5 Qc7 24. Rad3 Rad8 25. Qa3 a6 26. Qxc5 Qxc5 27. Rxc5 Rxd3 28. Bxd3 Rd8 29. Be2 Rd7 30. Rc8+ Bf8 31. Bf3 b5 32. Bd5 a5 33. Ra8 a4 34. e4 Rc7 35. Kf1 bxc4 36. Ke2 c3 37. Kd1 c2+ 38. Kc1 Rc3 39. Rxa4 Bh6+ *

[Event "56th Rubinstein Memorial C 2020"]
[Site "Polanica Zdroj"]
[Date "2020.08.22"]
[Round "8.8"]
[White "Halhoul, Adam"]
[Black "Demski, Michal"]
[Result "0-1"]
[ECO "A41"]
[WhiteElo "1579"]
[BlackElo "1617"]
[Annotator "NA RC"]
[PlyCount "62"]
[EventDate "2020.08.15"]
[EventType "swiss"]
[EventCountry "POL"]
[SourceTitle "playchess.com"]
[Source "ChessBase"]
[SourceQuality "1"]
[TimeControl "40/5400+30:1800+30"]

1. d4 {[%emt 0:00:00]} d6 {[%emt 0:00:00]} 2. Nf3 {[%emt 0:00:10]} Bg4 {[%emt 0:00:00]} 3. e4 {[%emt 0:00:20]} Nf6 {[%emt 0:00:31]} 4. Nc3 {[%emt 0:00:37]} Nbd7 {[%emt 0:01:26]} 5. h3 {[%emt 0:00:15]} Bxf3 {[%emt 0:00:53]} 6. Qxf3 {[%emt 0:01:30]} e5 {[%emt 0:04:21]} 7. d5 {[%emt 0:01:14]} Be7 {[%emt 0:05:49]} 8. g4 {[%emt 0:02:52]} h6 {[%emt 0:10:09]} 9. h4 {[%emt 0:03:55]} Nh7 {[%emt 0:08:33]} 10. g5 {[%emt 0:07:03]} hxg5 {[%emt 0:04:13]} 11. hxg5 {[%emt 0:00:12]} Bxg5 {[%emt 0:08:27]} 12. Bxg5 {[%emt 0:02:08]} Qxg5 {[%emt 0:02:35]} 13. Rh5 {[%emt 0:02:17]} Qg6 {[%emt 0:10:08]} 14. O-O-O {[%emt 0:08:52]} Ke7 {[%emt 0:11:26]} 15. Qh1 {[%emt 0:03:56]} Ndf6 {[%emt 0:02:23]} 16. Rh2 {[%emt 0:01:11]} Ng4 17. Rh5 Nxf2 {[%emt 0:07:05]} 18. Qh4+ {[%emt 0:05:11]} Qf6 {[%emt 0:00:06]} 19. Rd2 {[%emt 0:02:30]} Ng4 20. Qxg4 {[%emt 0:01:40]} Qxf1+ {[%emt 0:01:21]} 21. Rd1 {[%emt 0:00:30]} Qf4+ {[%emt 0:00:08]} 22. Qxf4 {[%emt 0:00:29]} exf4 {[%emt 0:00:05]} 23. Rdh1 {[%emt 0:00:40]} Rag8 {[%emt 0:06:45]} 24. Rxh7 {[%emt 0:02:49]} Rxh7 {[%emt 0:00:05]} 25. Rh4 Rh6 26. Rxh6 {[%emt 0:04:01]} g5 {[%emt 0:06:32]} 27. Kd2 {[%emt 0:02:14]} g4 {[%emt 0:02:41]} 28. Ke2 {[%emt 0:01:19]} Re8 {[%emt 0:00:26]} 29. Kf2 {[%emt 0:09:23]} c6 {[%emt 0:04:24]} 30. dxc6 {[%emt 0:07:23]} bxc6 {[%emt 0:00:05]} 31. a4 {[%emt 0:02:25]} a5 {[%emt 0:04:00]} 0-1

[Event "56th Rubinstein Memorial C 2020"]
[Site "Polanica Zdroj"]
[Date "2020.08.22"]
[Round "8.9"]
[White "Ciborowski, Konrad Jr"]
[Black "Lambrecht, Tomasz"]
[Result "0-1"]
[ECO "B11"]
[WhiteElo "1464"]
[BlackElo "1750"]
[Annotator "NA RC"]
[PlyCount "120"]
[EventDate "2020.08.15"]
[EventType "swiss"]
[EventCountry "POL"]
[SourceTitle "playchess.com"]
[Source "ChessBase"]
[SourceQuality "1"]
[TimeControl "40/5400+30:1800+30"]

1. e4 {[%emt 0:00:00]} c6 {[%emt 0:00:00]} 2. Nc3 {[%emt 0:00:00]} d5 {[%emt 0:00:07]} 3. Nf3 {[%emt 0:00:00]} Bg4 {[%emt 0:00:05]} 4. h3 {[%emt 0:00:00]} Bxf3 {[%emt 0:00:02]} 5. Qxf3 {[%emt 0:00:00]} Nf6 {[%emt 0:00:08]} 6. d3 {[%emt 0:00:20]} e6 {[%emt 0:00:57]} 7. Bd2 {[%emt 0:00:22]} Bb4 {[%emt 0:04:52]} 8. O-O-O {[%emt 0:01:56]} d4 {[%emt 0:08:40]} 9. Ne2 {[%emt 0:01:20]} Bxd2+ {[%emt 0:01:05]} 10. Rxd2 {[%emt 0:00:20]} c5 {[%emt 0:09:51]} 11. c4 {[%emt 0:02:52]} Nc6 {[%emt 0:15:52]} 12. g4 {[%emt 0:01:24]} Nd7 {[%emt 0:09:30]} 13. Qg3 {[%emt 0:01:48]} e5 {[%emt 0:01:33]} 14. f4 {[%emt 0:04:25]} f6 {[%emt 0:02:12]} 15. g5 {[%emt 0:01:27]} fxg5 {[%emt 0:08:58]} 16. Qxg5 {[%emt 0:00:59]} Qxg5 {[%emt 0:01:44]} 17. fxg5 {[%emt 0:00:04]} Nf8 {[%emt 0:05:29]} 18. h4 {[%emt 0:01:03]} Ne6 {[%emt 0:02:45]} 19. Bh3 {[%emt 0:00:05]} Ke7 {[%emt 0:01:11]} 20. Bxe6 {[%emt 0:05:17]} Kxe6 {[%emt 0:00:01]} 21. Rg1 {[%emt 0:06:19]} g6 {[%emt 0:06:01]} 22. a3 {[%emt 0:08:22]} Raf8 {[%emt 0:00:55]} 23. h5 {[%emt 0:01:24]} Rf3 {[%emt 0:02:22]} 24. Rh1 {[%emt 0:00:07]} Rhf8 {[%emt 0:01:42]} 25. hxg6 {[%emt 0:01:27]} hxg6 {[%emt 0:00:01]} 26. Rdd1 {[%emt 0:01:33]} Re3 {[%emt 0:02:42]} 27. Rh2 {[%emt 0:01:06]} Rff3 {[%emt 0:02:26]} 28. Kc2 {[%emt 0:00:06]} a6 {[%emt 0:02:51]} 29. Rd2 {[%emt 0:00:10]} Ne7 {[%emt 0:07:30]} 30. Rh8 {[%emt 0:01:22]} Kd7 {[%emt 0:02:51]} 31. Rb8 {[%emt 0:00:38]} Kc7 {[%emt 0:00:09]} 32. Re8 {[%emt 0:00:12]} Kd7 {[%emt 0:00:27]} 33. Rb8 {[%emt 0:00:06]} Kc7 {[%emt 0:00:44]} 34. Re8 {[%emt 0:00:07]} Rf7 {[%emt 0:00:32]} 35. Rh8 {[%emt 0:01:24]} Ref3 {[%emt 0:00:37]} 36. Rd1 {[%emt 0:00:37]} Re3 {[%emt 0:00:26]} 37. Rd2 {[%emt 0:00:13]} Nc6 {[%emt 0:00:36]} 38. Rg8 {[%emt 0:00:23]} Ne7 {[%emt 0:00:06]} 39. Rh8 {[%emt 0:00:05]} Rf1 {[%emt 0:00:51]} 40. Re8 {[%emt 0:00:00]} Kd7 {[%emt 0:00:00]} 41. Rb8 {[%emt 0:00:32]} Kc6 {[%emt 0:12:00]} 42. Re8 {[%emt 0:00:15]} Rf7 {[%emt 0:02:00]} 43. Rh8 {[%emt 0:00:08]} Ref3 {[%emt 0:02:49]} 44. Rd1 {[%emt 0:00:52]} Rf2 {[%emt 0:01:33]} 45. Kd2 {[%emt 0:00:05]} Rg2 {[%emt 0:01:21]} 46. Rg1 {[%emt 0:00:03]} Rff2 {[%emt 0:01:06]} 47. Rxg2 {[%emt 0:00:08]} Rxg2 {[%emt 0:00:01]} 48. Re8 {[%emt 0:00:06]} Kd7 {[%emt 0:00:34]} 49. Rb8 {[%emt 0:00:03]} Kc7 {[%emt 0:00:41]} 50. Re8 {[%emt 0:00:26]} Nc6 {[%emt 0:01:32]} 51. Ke1 {[%emt 0:01:38]} Rxg5 52. Kf2 Rh5 {[%emt 0:01:44]} 53. Rg8 {[%emt 0:00:47]} Rh1 {[%emt 0:02:58]} 54. Rxg6 {[%emt 0:01:49]} Rb1 {[%emt 0:00:12]} 55. b4 {[%emt 0:00:06]} cxb4 {[%emt 0:00:10]} 56. axb4 {[%emt 0:00:03]} Nxb4 {[%emt 0:00:28]} 57. Rg3 {[%emt 0:01:03]} Rd1 {[%emt 0:04:11]} 58. Ng1 {[%emt 0:00:04]} Rxd3 {[%emt 0:00:24]} 59. Nf3 {[%emt 0:00:08]} Nc6 {[%emt 0:01:27]} 60. c5 {[%emt 0:02:30]} Rc3 {[%emt 0:01:07]} 0-1

[Event "56th Rubinstein Memorial C 2020"]
[Site "Polanica Zdroj"]
[Date "2020.08.22"]
[Round "8.10"]
[White "Rudecki, Bartosz"]
[Black "Zalega, Maciej"]
[Result "1-0"]
[ECO "B53"]
[WhiteElo "1831"]
[BlackElo "1743"]
[Annotator "NA RC"]
[PlyCount "45"]
[EventDate "2020.08.15"]
[EventType "swiss"]
[EventCountry "POL"]
[SourceTitle "playchess.com"]
[Source "ChessBase"]
[SourceQuality "1"]
[TimeControl "40/5400+30:1800+30"]

{[%evp 16,33,5,32767,-4,-12,22,-8,46,-6,0,0,111,105,85,-35,-5,-136,0,0]} 1. e4 {[%emt 0:00:00]} c5 {[%emt 0:00:00]} 2. Nf3 {[%emt 0:00:00]} d6 {[%emt 0:00:00]} 3. d4 {[%emt 0:00:00]} cxd4 {[%emt 0:00:00]} 4. Qxd4 {[%emt 0:00:02]} Nc6 {[%emt 0:00:48]} 5. Bb5 {[%emt 0:01:01]} Bd7 {[%emt 0:02:50]} 6. Bxc6 {[%emt 0:01:21]} Bxc6 7. Nc3 {[%emt 0:00:07]} Nf6 {[%emt 0:05:11]} 8. Bg5 {[%emt 0:03:31]} e6 {[%emt 0:05:43]} 9. O-O-O {[%emt 0:00:07]} Be7 {[%emt 0:03:23]} 10. Rhe1 {[%emt 0:00:10]} a6 {[%emt 0:06:48]} 11. Kb1 {[%emt 0:02:29]} Qc7 {[%emt 0:01:52]} 12. Nd5 {[%emt 0:05:20]} (12. Bxf6 $5 Bxf6 13. Qxd6 Qxd6 14. Rxd6 $14) 12... Bxd5 {[%emt 0:10:57]} 13. exd5 {[%emt 0:00:15]} Rc8 {[%emt 0:21:11]} (13... e5 $11 {remains equal.} 14. Qb4 h6 15. Bxf6 Bxf6) 14. c3 {[%emt 0:01:34]} e5 {[%emt 0:00:44] [#]} 15. Qh4 {[%emt 0:00:32]} (15. Nxe5 $1 $16 dxe5 16. Rxe5) 15... O-O {[%emt 0:05:16]} 16. Nxe5 {[%emt 0:08:39] [#]} (16. Qh3 $11) 16... dxe5 $2 {[%emt 0:01:13] [#]} (16... h6 $1 $19 {[%cal Rh6g5]} 17. Bxh6 Ne8) 17. d6 $11 {[%emt 0:00:37]} Bxd6 {[%emt 0:00:48]} 18. Bxf6 {[%emt 0:00:07]} gxf6 {[%emt 0:00:45]} 19. Re4 {[%emt 0:01:07]} f5 {[%emt 0:02:56]} 20. Qg5+ {[%emt 0:00:12]} Kh8 {[%emt 0:00:12]} 21. Qf6+ {[%emt 0:00:04]} Kg8 {[%emt 0:00:07]} 22. Rd3 {[%emt 0:00:15]} f4 {[%emt 0:00:45]} 23. Rg3+ {[%emt 0:00:10]} 1-0

[Event "56th Rubinstein Memorial C 2020"]
[Site "Polanica Zdroj"]
[Date "2020.08.22"]
[Round "8.11"]
[White "Witkowski, Krzysztof"]
[Black "Grot, Blazej"]
[Result "1-0"]
[ECO "B21"]
[WhiteElo "1791"]
[BlackElo "1768"]
[Annotator "NA RC"]
[PlyCount "103"]
[EventDate "2020.08.15"]
[EventType "swiss"]
[EventCountry "POL"]
[SourceTitle "playchess.com"]
[Source "ChessBase"]
[SourceQuality "1"]
[TimeControl "40/5400+30:1800+30"]

1. e4 {[%emt 0:00:00]} c5 {[%emt 0:00:00]} 2. d4 {[%emt 0:00:00]} cxd4 {[%emt 0:00:00]} 3. c3 {[%emt 0:00:00]} Nf6 {[%emt 0:00:00]} 4. e5 {[%emt 0:00:00]} Nd5 {[%emt 0:00:03]} 5. Qxd4 {[%emt 0:00:00]} e6 {[%emt 0:00:07]} 6. Nf3 {[%emt 0:00:06]} Nc6 {[%emt 0:00:06]} 7. Qe4 {[%emt 0:00:07]} f5 {[%emt 0:00:37]} 8. Qe2 {[%emt 0:00:11]} b5 {[%emt 0:00:24]} 9. g3 {[%emt 0:16:13]} Bb7 {[%emt 0:07:54]} 10. Bg2 {[%emt 0:00:55]} Qc7 {[%emt 0:01:42]} 11. O-O {[%emt 0:00:14]} a6 {[%emt 0:00:50]} 12. Re1 {[%emt 0:00:50]} g6 {[%emt 0:01:09]} 13. Nbd2 {[%emt 0:06:37]} Bg7 {[%emt 0:04:05]} 14. Nb3 {[%emt 0:01:39]} Nce7 {[%emt 0:03:36]} 15. Nbd4 {[%emt 0:10:48]} Nb6 {[%emt 0:03:31]} 16. Ng5 {[%emt 0:09:40]} Bxg2 {[%emt 0:01:08]} 17. Kxg2 {[%emt 0:00:04]} h6 {[%emt 0:00:11]} 18. Nh3 {[%emt 0:00:39]} O-O {[%emt 0:01:13]} 19. f4 {[%emt 0:00:30]} Ned5 {[%emt 0:02:03]} 20. Be3 {[%emt 0:09:40]} Qb7 {[%emt 0:01:19]} 21. Kg1 {[%emt 0:01:12]} Rac8 {[%emt 0:00:37]} 22. a3 {[%emt 0:03:10]} Nxe3 {[%emt 0:05:41]} 23. Qxe3 {[%emt 0:02:17]} Nd5 {[%emt 0:00:12]} 24. Qd2 {[%emt 0:02:23]} Qb6 {[%emt 0:01:04]} 25. Nf2 {[%emt 0:00:27]} Rc4 {[%emt 0:01:11]} 26. Rad1 {[%emt 0:01:08]} Rfc8 {[%emt 0:02:03]} 27. Nc2 {[%emt 0:06:29]} g5 {[%emt 0:10:26]} 28. Ne3 {[%emt 0:02:27]} gxf4 {[%emt 0:03:25]} 29. Nxd5 {[%emt 0:02:22]} exd5 {[%emt 0:00:11]} 30. Qxd5+ {[%emt 0:00:51]} Kh8 {[%emt 0:00:08]} 31. e6 {[%emt 0:01:44]} fxg3 {[%emt 0:05:17]} 32. hxg3 {[%emt 0:01:04]} dxe6 {[%emt 0:01:01]} 33. Rxe6 {[%emt 0:00:42]} Qa7 {[%emt 0:02:58]} 34. Qd7 {[%emt 0:04:20]} Qc5 {[%emt 0:02:29]} 35. Rd5 {[%emt 0:08:12]} Qf8 {[%emt 0:01:47]} 36. Rxf5 {[%emt 0:00:17]} Qxf5 {[%emt 0:01:06]} 37. Rxh6+ {[%emt 0:00:05]} Bxh6 {[%emt 0:00:24]} 38. Qxf5 {[%emt 0:00:06]} Rf8 {[%emt 0:00:22]} 39. Qe5+ {[%emt 0:01:13]} Bg7 {[%emt 0:00:19]} 40. Qh5+ {[%emt 0:00:00]} Kg8 {[%emt 0:00:00]} 41. Ne4 {[%emt 0:03:00]} Rc7 {[%emt 0:02:06]} 42. Ng5 {[%emt 0:03:53]} Rf6 {[%emt 0:00:46]} 43. Qh7+ {[%emt 0:05:07]} Kf8 {[%emt 0:00:18]} 44. Qe4 {[%emt 0:00:33]} Kg8 {[%emt 0:00:38]} 45. Qd5+ {[%emt 0:03:01]} Rcf7 {[%emt 0:00:45]} 46. Nxf7 {[%emt 0:00:32]} Rxf7 {[%emt 0:00:06]} 47. Qa8+ {[%emt 0:00:47]} Bf8 {[%emt 0:00:13]} 48. Qxa6 {[%emt 0:01:03]} Bc5+ {[%emt 0:00:12]} 49. Kg2 {[%emt 0:00:18]} Rf2+ {[%emt 0:00:05]} 50. Kh3 {[%emt 0:00:07]} Rxb2 {[%emt 0:00:05]} 51. Qg6+ {[%emt 0:00:11]} Kh8 {[%emt 0:00:06]} 52. Qh5+ {[%emt 0:00:06]} 1-0

[Event "56th Rubinstein Memorial C 2020"]
[Site "Polanica Zdroj"]
[Date "2020.08.22"]
[Round "8.12"]
[White "Borowski, Przemyslaw"]
[Black "Jaworski, Tymon"]
[Result "1-0"]
[ECO "B20"]
[WhiteElo "1790"]
[BlackElo "1667"]
[Annotator "NA RC"]
[PlyCount "71"]
[EventDate "2020.08.15"]
[EventType "swiss"]
[EventCountry "POL"]
[SourceTitle "playchess.com"]
[Source "ChessBase"]
[SourceQuality "1"]
[TimeControl "40/5400+30:1800+30"]

1. e4 {[%emt 0:00:00]} c5 {[%emt 0:00:00]} 2. b4 {[%emt 0:00:00]} e6 {[%emt 0:04:36]} 3. bxc5 {[%emt 0:00:00]} Bxc5 {[%emt 0:00:29]} 4. d4 {[%emt 0:00:00]} Bb6 {[%emt 0:04:11]} 5. c3 {[%emt 0:00:48]} d5 {[%emt 0:01:05]} 6. e5 {[%emt 0:00:06]} Ne7 {[%emt 0:00:45]} 7. Qg4 {[%emt 0:00:56]} Ng6 {[%emt 0:02:32]} 8. h4 {[%emt 0:00:31]} h5 {[%emt 0:02:14]} 9. Qg3 {[%emt 0:00:53]} Nd7 {[%emt 0:01:14]} 10. Bd3 {[%emt 0:00:25]} Ndf8 {[%emt 0:00:56]} 11. Nf3 {[%emt 0:03:51]} Bd7 {[%emt 0:05:24]} 12. Ng5 {[%emt 0:00:50]} Rc8 {[%emt 0:02:00]} 13. O-O {[%emt 0:07:49]} Bc7 {[%emt 0:07:44]} 14. f4 {[%emt 0:12:48]} f5 {[%emt 0:02:08]} 15. exf6 {[%emt 0:05:23]} Qxf6 {[%emt 0:03:30]} 16. Qe1 {[%emt 0:00:47]} Ne7 {[%emt 0:03:22]} 17. a4 {[%emt 0:24:01]} Ba5 {[%emt 0:02:10]} 18. Bd2 {[%emt 0:02:06]} a6 {[%emt 0:03:14]} 19. Ra2 {[%emt 0:05:13]} Nf5 {[%emt 0:07:34]} 20. Rb2 {[%emt 0:03:57]} Rc7 {[%emt 0:02:25]} 21. Bxf5 {[%emt 0:09:21]} Qxf5 {[%emt 0:00:25]} 22. Rf2 {[%emt 0:00:25]} Ng6 {[%emt 0:19:14]} 23. Re2 {[%emt 0:01:02]} Ke7 {[%emt 0:01:51]} 24. g3 {[%emt 0:06:48]} Re8 {[%emt 0:04:53]} 25. c4 {[%emt 0:03:25]} Bxd2 {[%emt 0:01:01]} 26. Nxd2 {[%emt 0:00:21]} dxc4 {[%emt 0:02:55]} 27. Nde4 {[%emt 0:01:25]} c3 {[%emt 0:00:59]} 28. Rbc2 {[%emt 0:01:51]} Qd5 {[%emt 0:02:02]} 29. Qf2 {[%emt 0:00:51]} Kf8 {[%emt 0:04:30]} 30. Nxc3 {[%emt 0:01:08]} Qa5 {[%emt 0:07:29]} 31. Qf3 {[%emt 0:02:10]} Bxa4 {[%emt 0:01:48]} 32. Qxh5 {[%emt 0:03:49]} Bxc2 {[%emt 0:00:40]} 33. Nh7+ {[%emt 0:00:26]} Kf7 {[%emt 0:00:34]} 34. Qxa5 {[%emt 0:00:07]} Rc6 {[%emt 0:00:33]} 35. Ng5+ {[%emt 0:01:19]} Kf6 {[%emt 0:00:30]} 36. Rxc2 {[%emt 0:00:13]} 1-0

[Event "56th Rubinstein Memorial C 2020"]
[Site "Polanica Zdroj"]
[Date "2020.08.22"]
[Round "8.13"]
[White "Vanduyfhuys, Igor"]
[Black "Plichta, Krzysztof"]
[Result "0-1"]
[ECO "B19"]
[WhiteElo "1776"]
[BlackElo "1605"]
[Annotator "NA RC"]
[PlyCount "72"]
[EventDate "2020.08.15"]
[EventType "swiss"]
[EventCountry "POL"]
[SourceTitle "playchess.com"]
[Source "ChessBase"]
[SourceQuality "1"]
[TimeControl "40/5400+30:1800+30"]

1. e4 {[%emt 0:00:00]} c6 {[%emt 0:00:00]} 2. d4 {[%emt 0:00:00]} d5 {[%emt 0:00:02]} 3. Nd2 {[%emt 0:00:15]} dxe4 {[%emt 0:00:15]} 4. Nxe4 {[%emt 0:00:17]} Bf5 {[%emt 0:00:08]} 5. Ng3 {[%emt 0:00:19]} Bg6 {[%emt 0:00:18]} 6. h4 {[%emt 0:00:46]} h6 {[%emt 0:00:20]} 7. Nf3 {[%emt 0:00:17]} Nd7 {[%emt 0:00:33]} 8. h5 {[%emt 0:00:39]} Bh7 {[%emt 0:00:12]} 9. Bd3 {[%emt 0:00:24]} Bxd3 {[%emt 0:00:44]} 10. Qxd3 {[%emt 0:00:16]} e6 {[%emt 0:01:35]} 11. Bd2 {[%emt 0:00:52]} Ngf6 {[%emt 0:02:05]} 12. O-O-O {[%emt 0:01:05]} a5 {[%emt 0:06:17]} 13. Kb1 {[%emt 0:02:08]} b5 {[%emt 0:01:05]} 14. Ne4 {[%emt 0:00:38]} Nxe4 {[%emt 0:01:35]} 15. Qxe4 {[%emt 0:00:05]} Qb6 {[%emt 0:01:46]} 16. Ne5 {[%emt 0:01:47]} Nxe5 {[%emt 0:02:17]} 17. Qxe5 {[%emt 0:02:37]} Rd8 {[%emt 0:06:05]} 18. Bc1 {[%emt 0:03:51]} Rd5 {[%emt 0:02:31]} 19. Qe4 {[%emt 0:01:20]} Be7 {[%emt 0:05:35]} 20. g4 {[%emt 0:02:40]} Bf6 {[%emt 0:06:21]} 21. Be3 {[%emt 0:00:25]} O-O {[%emt 0:02:08]} 22. f4 {[%emt 0:02:50]} Rfd8 {[%emt 0:00:53]} 23. c3 {[%emt 0:00:58]} Qa7 {[%emt 0:07:35]} 24. Rdg1 {[%emt 0:13:47]} Qe7 {[%emt 0:03:11]} 25. Rg2 {[%emt 0:00:10]} c5 {[%emt 0:02:41]} 26. g5 {[%emt 0:04:39]} hxg5 {[%emt 0:00:28]} 27. h6 {[%emt 0:00:26]} g6 {[%emt 0:00:36]} 28. fxg5 {[%emt 0:01:10]} Bxg5 {[%emt 0:06:33]} 29. Rhg1 {[%emt 0:01:37]} Bxe3 {[%emt 0:04:27]} 30. Qxe3 {[%emt 0:04:21]} cxd4 {[%emt 0:03:26]} 31. Qe4 {[%emt 0:01:59]} dxc3 {[%emt 0:03:33]} 32. bxc3 {[%emt 0:00:41]} Rd1+ {[%emt 0:04:26]} 33. Rxd1 {[%emt 0:00:05]} Rxd1+ {[%emt 0:00:05]} 34. Kc2 {[%emt 0:01:19]} Rd5 {[%emt 0:01:28]} 35. Qf4 {[%emt 0:06:13]} Kh7 {[%emt 0:04:41]} 36. Qb8 {[%emt 0:02:15]} Qa3 0-1